[Event "GrandPrix_30.05"]
[Site "Chess.com"]
[Date "2020.05.30"]
[Round "6"]
[White "Yurovskykh_Alexander"]
[Black "BlackBoarder"]
[Result "0-1"]
[WhiteElo "2254"]
[BlackElo "2208"]
[TimeControl "600+2"]
[EndTime "10:59:13 PDT"]
[Termination "BlackBoarder won by checkmate"]

1. d4 {[%clk 0:09:59.1]} 1... e6 {[%clk 0:09:59.1]} 2. Nf3 {[%clk 0:09:57.5]}
2... Nf6 {[%clk 0:09:58.7]} 3. Bf4 {[%clk 0:09:53.4]} 3... c5 {[%clk 0:09:56]}
4. c3 {[%clk 0:09:52.9]} 4... Nc6 {[%clk 0:09:55.4]} 5. e3 {[%clk 0:09:53.9]}
5... d5 {[%clk 0:09:55]} 6. Nbd2 {[%clk 0:09:54.7]} 6... Be7 {[%clk 0:09:55.1]}
7. Bd3 {[%clk 0:09:52.6]} 7... Nh5 {[%clk 0:09:54.9]} 8. Be5 {[%clk 0:09:53.4]}
8... f6 {[%clk 0:09:44.2]} 9. Bg3 {[%clk 0:09:54.1]} 9... g6 {[%clk 0:08:56.8]}
10. Qe2 {[%clk 0:09:38.3]} 10... O-O {[%clk 0:08:53.2]} 11. Rd1 {[%clk
0:09:10.9]} 11... Bd7 {[%clk 0:08:35.1]} 12. O-O {[%clk 0:06:50.7]} 12... Qb6
{[%clk 0:08:15.1]} 13. Rb1 {[%clk 0:06:09.5]} 13... Nxg3 {[%clk 0:07:36.6]} 14.
hxg3 {[%clk 0:06:08.1]} 14... Kg7 {[%clk 0:07:10.9]} 15. b4 {[%clk 0:05:14]}
15... cxb4 {[%clk 0:06:31.5]} 16. cxb4 {[%clk 0:05:13]} 16... Rac8 {[%clk
0:06:16.2]} 17. a3 {[%clk 0:05:07.2]} 17... e5 {[%clk 0:03:58.3]} 18. dxe5
{[%clk 0:05:04.9]} 18... Nxe5 {[%clk 0:03:53.2]} 19. Nxe5 {[%clk 0:05:03.4]}
19... fxe5 {[%clk 0:03:53.2]} 20. e4 {[%clk 0:05:04.9]} 20... d4 {[%clk
0:03:49.8]} 21. Nc4 {[%clk 0:04:52.7]} 21... Qe6 {[%clk 0:03:37]} 22. f4 {[%clk
0:04:49.8]} 22... Bd6 {[%clk 0:03:03.8]} 23. f5 {[%clk 0:04:25.1]} 23... Qe7
{[%clk 0:02:58.3]} 24. g4 {[%clk 0:04:21.9]} 24... Bc7 {[%clk 0:02:40]} 25. Qd2
{[%clk 0:02:57.4]} 25... h6 {[%clk 0:02:26.3]} 26. g3 {[%clk 0:02:57.2]} 26...
b5 {[%clk 0:02:17.1]} 27. Nb2 {[%clk 0:02:45]} 27... Bd8 {[%clk 0:01:33.4]} 28.
Rfc1 {[%clk 0:00:51.1]} 28... Qg5 {[%clk 0:01:32.5]} 29. Qxg5 {[%clk 0:00:36.2]}
29... Bxg5 {[%clk 0:01:32.6]} 30. Rxc8 {[%clk 0:00:37.1]} 30... Rxc8 {[%clk
0:01:33.1]} 31. Nd1 {[%clk 0:00:34.9]} 31... Rc1 {[%clk 0:01:25.8]} 32. Kg2
{[%clk 0:00:26.5]} 32... Rxb1 {[%clk 0:01:26.5]} 33. Bxb1 {[%clk 0:00:28.4]}
33... Bc1 {[%clk 0:01:27.4]} 34. Nf2 {[%clk 0:00:28.3]} 34... Bxa3 {[%clk
0:01:27.7]} 35. Nd3 {[%clk 0:00:29.6]} 35... Kf6 {[%clk 0:01:20.7]} 36. fxg6
{[%clk 0:00:25.1]} 36... Be6 {[%clk 0:01:06.1]} 37. Kf3 {[%clk 0:00:16.8]} 37...
Bc4 {[%clk 0:00:53.3]} 38. g7 {[%clk 0:00:16.6]} 38... Kxg7 {[%clk 0:00:27.4]}
39. Nxe5 {[%clk 0:00:17.2]} 39... Bxb4 {[%clk 0:00:28.9]} 40. Nxc4 {[%clk
0:00:18.2]} 40... bxc4 {[%clk 0:00:30.5]} 41. Ba2 {[%clk 0:00:19.6]} 41... c3
{[%clk 0:00:26.6]} 42. Bb1 {[%clk 0:00:20.5]} 42... Kf6 {[%clk 0:00:24.9]} 43.
Ke2 {[%clk 0:00:10.7]} 43... Ke5 {[%clk 0:00:24.1]} 44. Kd3 {[%clk 0:00:11.5]}
44... Ba3 {[%clk 0:00:17.7]} 45. Bc2 {[%clk 0:00:05.6]} 45... Bc1 {[%clk
0:00:18.3]} 46. Ba4 {[%clk 0:00:06.5]} 46... Be3 {[%clk 0:00:18.9]} 47. Bd7
{[%clk 0:00:07.2]} 47... Bf2 {[%clk 0:00:19.1]} 48. Ba4 {[%clk 0:00:07.6]} 48...
Bxg3 {[%clk 0:00:20.1]} 49. Bd7 {[%clk 0:00:09.1]} 49... Bf2 {[%clk 0:00:19.5]}
50. Bc6 {[%clk 0:00:10]} 50... a5 {[%clk 0:00:19.9]} 51. Bd7 {[%clk 0:00:10.9]}
51... Bh4 {[%clk 0:00:20.1]} 52. Ba4 {[%clk 0:00:11.1]} 52... Bf6 {[%clk
0:00:21]} 53. Bd7 {[%clk 0:00:12.2]} 53... Kf4 {[%clk 0:00:20.6]} 54. Bf5 {[%clk
0:00:04.1]} 54... a4 {[%clk 0:00:21.1]} 55. Bd7 {[%clk 0:00:05.4]} 55... a3
{[%clk 0:00:21]} 56. Be6 {[%clk 0:00:06.9]} 56... Be5 {[%clk 0:00:21.8]} 57. Kc2
{[%clk 0:00:04.2]} 57... Kxe4 {[%clk 0:00:20.1]} 58. Kb3 {[%clk 0:00:05.7]}
58... Bd6 {[%clk 0:00:20.5]} 59. Kc2 {[%clk 0:00:05.1]} 59... Ke3 {[%clk
0:00:21.2]} 60. Bc4 {[%clk 0:00:04.8]} 60... Be5 {[%clk 0:00:16.1]} 61. Kb3
{[%clk 0:00:02.9]} 61... Kd2 {[%clk 0:00:16.1]} 62. g5 {[%clk 0:00:03.5]} 62...
hxg5 {[%clk 0:00:16.7]} 63. Be6 {[%clk 0:00:04.7]} 63... c2 {[%clk 0:00:17.1]}
64. Ka2 {[%clk 0:00:04.7]} 64... c1=Q {[%clk 0:00:16.9]} 65. Kb3 {[%clk
0:00:06.1]} 65... d3 {[%clk 0:00:17]} 66. Bf5 {[%clk 0:00:06]} 66... Qc3+ {[%clk
0:00:17.5]} 67. Ka4 {[%clk 0:00:07.3]} 67... a2 {[%clk 0:00:18]} 68. Kb5 {[%clk
0:00:08.9]} 68... a1=Q {[%clk 0:00:18.4]} 69. Bxd3 {[%clk 0:00:10]} 69... Qaa5#
{[%clk 0:00:19.3]} 0-1

[Event "GrandPrix_30.05"]
[Site "Chess.com"]
[Date "2020.05.30"]
[Round "6"]
[White "sahidi"]
[Black "fujiwara_hoga"]
[Result "1/2-1/2"]
[WhiteElo "2208"]
[BlackElo "2132"]
[TimeControl "600+2"]
[EndTime "10:59:14 PDT"]
[Termination "Game drawn - insufficient material"]

1. e4 {[%clk 0:10:01.9]} 1... e5 {[%clk 0:09:59.5]} 2. Nf3 {[%clk 0:10:02.1]}
2... Nc6 {[%clk 0:09:59.6]} 3. Nc3 {[%clk 0:10:01.9]} 3... Nf6 {[%clk
0:09:58.7]} 4. Bb5 {[%clk 0:10:02]} 4... Bb4 {[%clk 0:09:57.5]} 5. d3 {[%clk
0:09:52.3]} 5... d6 {[%clk 0:09:50.2]} 6. h3 {[%clk 0:09:35]} 6... O-O {[%clk
0:09:47.2]} 7. O-O {[%clk 0:09:34.9]} 7... Ne7 {[%clk 0:09:37.1]} 8. Bg5 {[%clk
0:09:22.6]} 8... c6 {[%clk 0:09:36.2]} 9. Bc4 {[%clk 0:09:11.6]} 9... Ng6 {[%clk
0:09:32.6]} 10. Nh4 {[%clk 0:08:50.9]} 10... Be6 {[%clk 0:08:25]} 11. Nxg6
{[%clk 0:08:46.6]} 11... hxg6 {[%clk 0:08:22.3]} 12. Bxe6 {[%clk 0:08:44.8]}
12... fxe6 {[%clk 0:08:24.2]} 13. Ne2 {[%clk 0:08:18.5]} 13... Qd7 {[%clk
0:08:15.5]} 14. Ng3 {[%clk 0:08:10.7]} 14... Bc5 {[%clk 0:07:25.2]} 15. c3
{[%clk 0:07:58.2]} 15... Nh7 {[%clk 0:07:24.4]} 16. Be3 {[%clk 0:07:31.1]} 16...
Bxe3 {[%clk 0:07:23.5]} 17. fxe3 {[%clk 0:07:32.3]} 17... Rxf1+ {[%clk
0:07:24.1]} 18. Qxf1 {[%clk 0:07:30.4]} 18... Qe7 {[%clk 0:07:24.3]} 19. Qe2
{[%clk 0:07:27.4]} 19... Qg5 {[%clk 0:07:16.4]} 20. Kh2 {[%clk 0:07:24.9]} 20...
Nf6 {[%clk 0:07:09.3]} 21. Rf1 {[%clk 0:07:20.3]} 21... Kf7 {[%clk 0:06:53.6]}
22. Rf3 {[%clk 0:07:01.3]} 22... Ke7 {[%clk 0:06:41]} 23. a4 {[%clk 0:06:48.7]}
23... Rf8 {[%clk 0:05:59.3]} 24. a5 {[%clk 0:06:38.6]} 24... a6 {[%clk
0:05:57.1]} 25. Qd1 {[%clk 0:06:36.1]} 25... Nd7 {[%clk 0:05:50.6]} 26. Rxf8
{[%clk 0:06:31.2]} 26... Kxf8 {[%clk 0:05:45.6]} 27. Qf3+ {[%clk 0:06:27.4]}
27... Qf6 {[%clk 0:05:37.7]} 28. b4 {[%clk 0:06:28.3]} 28... Ke7 {[%clk
0:05:33.6]} 29. Ne2 {[%clk 0:06:28]} 29... c5 {[%clk 0:05:17.7]} 30. d4 {[%clk
0:06:08.7]} 30... cxb4 {[%clk 0:04:55.3]} 31. cxb4 {[%clk 0:06:06.8]} 31... Qxf3
{[%clk 0:04:41.8]} 32. gxf3 {[%clk 0:06:07.4]} 32... exd4 {[%clk 0:04:26.3]} 33.
Nxd4 {[%clk 0:05:57.7]} 33... Ne5 {[%clk 0:04:21]} 34. Kg3 {[%clk 0:05:55.4]}
34... Nc4 {[%clk 0:04:10.3]} 35. Kf2 {[%clk 0:05:43.9]} 35... Kf6 {[%clk
0:04:00.8]} 36. h4 {[%clk 0:05:39.3]} 36... Ke5 {[%clk 0:03:15.7]} 37. f4+
{[%clk 0:05:32.5]} 37... Kf6 {[%clk 0:03:09.2]} 38. Ke2 {[%clk 0:05:29.7]} 38...
e5 {[%clk 0:02:53.4]} 39. Nf3 {[%clk 0:05:26.5]} 39... Na3 {[%clk 0:02:38.7]}
40. Kd3 {[%clk 0:05:24.2]} 40... Nb5 {[%clk 0:02:29.4]} 41. Kc4 {[%clk
0:05:13.1]} 41... exf4 {[%clk 0:01:01.4]} 42. exf4 {[%clk 0:05:14]} 42... Nc7
{[%clk 0:01:00.9]} 43. Nd4 {[%clk 0:04:59.2]} 43... Ke7 {[%clk 0:00:59.7]} 44.
Ne2 {[%clk 0:04:40.3]} 44... Ne6 {[%clk 0:00:48.9]} 45. b5 {[%clk 0:04:36]}
45... Nc5 {[%clk 0:00:38.9]} 46. bxa6 {[%clk 0:04:31.4]} 46... bxa6 {[%clk
0:00:40.8]} 47. Nc3 {[%clk 0:04:31.9]} 47... Nb7 {[%clk 0:00:34.3]} 48. Nd5+
{[%clk 0:04:26]} 48... Kd7 {[%clk 0:00:33.6]} 49. Nb4 {[%clk 0:03:58.9]} 49...
Nxa5+ {[%clk 0:00:30.3]} 50. Kd5 {[%clk 0:03:59.4]} 50... Nb3 {[%clk 0:00:17.8]}
51. Nxa6 {[%clk 0:03:58.7]} 51... Nd2 {[%clk 0:00:19.1]} 52. Nb8+ {[%clk
0:03:50.8]} 52... Kc7 {[%clk 0:00:17.3]} 53. Nc6 {[%clk 0:03:42.8]} 53... Nf3
{[%clk 0:00:16.5]} 54. Na7 {[%clk 0:03:30.8]} 54... Nxh4 {[%clk 0:00:11.8]} 55.
Nb5+ {[%clk 0:03:31.7]} 55... Kd7 {[%clk 0:00:12.9]} 56. Nxd6 {[%clk 0:03:28.1]}
56... Ng2 {[%clk 0:00:13.7]} 57. Ke5 {[%clk 0:03:23.2]} 57... Nxf4 {[%clk
0:00:12.6]} 58. Nf7 {[%clk 0:03:14.5]} 58... Ke7 {[%clk 0:00:12.4]} 59. Ng5
{[%clk 0:03:08.8]} 59... Nd3+ {[%clk 0:00:11.6]} 60. Kd4 {[%clk 0:03:05.2]}
60... Nf4 {[%clk 0:00:11.7]} 61. Ke5 {[%clk 0:03:02.7]} 61... Nh5 {[%clk
0:00:11.5]} 62. Kd4 {[%clk 0:02:58.9]} 62... Kf6 {[%clk 0:00:10]} 63. Nh7+
{[%clk 0:02:57.1]} 63... Ke7 {[%clk 0:00:06.9]} 64. Ke5 {[%clk 0:02:49.8]} 64...
Nf6 {[%clk 0:00:05.5]} 65. Ng5 {[%clk 0:02:50.8]} 65... Nd7+ {[%clk 0:00:06.2]}
66. Kd5 {[%clk 0:02:41.3]} 66... Kf6 {[%clk 0:00:05.3]} 67. Nh7+ {[%clk
0:02:39.9]} 67... Ke7 {[%clk 0:00:06.4]} 68. e5 {[%clk 0:02:39.4]} 68... Nf8
{[%clk 0:00:05]} 69. Ng5 {[%clk 0:02:35.1]} 69... Nd7 {[%clk 0:00:05.6]} 70. Nf3
{[%clk 0:02:34.2]} 70... Nf8 {[%clk 0:00:05.5]} 71. Nd4 {[%clk 0:02:28.7]} 71...
Nd7 {[%clk 0:00:05.9]} 72. Nc6+ {[%clk 0:02:27.9]} 72... Ke8 {[%clk 0:00:06.8]}
73. e6 {[%clk 0:02:26.8]} 73... Nf6+ {[%clk 0:00:07.5]} 74. Ke5 {[%clk
0:02:23.9]} 74... g5 {[%clk 0:00:07.9]} 75. Kf5 {[%clk 0:02:15.4]} 75... g4
{[%clk 0:00:08.6]} 76. Kf4 {[%clk 0:02:15.4]} 76... Kf8 {[%clk 0:00:07.7]} 77.
Nd4 {[%clk 0:02:10.6]} 77... g6 {[%clk 0:00:05.5]} 78. Ke5 {[%clk 0:02:00.3]}
78... Ne8 {[%clk 0:00:04.8]} 79. Ne2 {[%clk 0:01:57.6]} 79... Ke7 {[%clk
0:00:03.7]} 80. Nf4 {[%clk 0:01:58.4]} 80... g5 {[%clk 0:00:04.2]} 81. Nd5+
{[%clk 0:01:57.3]} 81... Kd8 {[%clk 0:00:04.5]} 82. Kf5 {[%clk 0:01:52.1]} 82...
g3 {[%clk 0:00:05]} 83. Ne3 {[%clk 0:01:53]} 83... Nd6+ {[%clk 0:00:04.2]} 84.
Kxg5 {[%clk 0:01:45.7]} 84... Ke7 {[%clk 0:00:04.8]} 85. Kf4 {[%clk 0:01:45.6]}
85... Kxe6 {[%clk 0:00:04.8]} 86. Kxg3 {[%clk 0:01:46.5]} 1/2-1/2

[Event "GrandPrix_30.05"]
[Site "Chess.com"]
[Date "2020.05.30"]
[Round "6"]
[White "am00ss00"]
[Black "klimkoj"]
[Result "1-0"]
[WhiteElo "2059"]
[BlackElo "2096"]
[TimeControl "600+2"]
[EndTime "10:59:19 PDT"]
[Termination "am00ss00 won by resignation"]

1. e4 {[%clk 0:09:36.4]} 1... c5 {[%clk 0:09:59.6]} 2. Nc3 {[%clk 0:09:36.9]}
2... d6 {[%clk 0:09:58.5]} 3. g3 {[%clk 0:09:37.8]} 3... g6 {[%clk 0:09:59.3]}
4. Bg2 {[%clk 0:09:38.3]} 4... Bg7 {[%clk 0:10:00.3]} 5. d3 {[%clk 0:09:38.9]}
5... e6 {[%clk 0:10:01.4]} 6. Be3 {[%clk 0:09:37.5]} 6... Nc6 {[%clk 0:10:01.1]}
7. Qd2 {[%clk 0:09:38.2]} 7... Nge7 {[%clk 0:10:00]} 8. f4 {[%clk 0:09:35.6]}
8... O-O {[%clk 0:10:00.2]} 9. Nf3 {[%clk 0:09:36.3]} 9... Nd4 {[%clk 0:10:00]}
10. O-O {[%clk 0:09:37]} 10... Nec6 {[%clk 0:09:59.5]} 11. Nh4 {[%clk 0:09:31]}
11... b5 {[%clk 0:09:57.9]} 12. Rae1 {[%clk 0:09:31.2]} 12... b4 {[%clk
0:09:57.7]} 13. Nd1 {[%clk 0:09:31.6]} 13... Rb8 {[%clk 0:09:31.3]} 14. f5
{[%clk 0:09:23]} 14... Ne5 {[%clk 0:09:02]} 15. c3 {[%clk 0:08:15.8]} 15... bxc3
{[%clk 0:08:55.2]} 16. bxc3 {[%clk 0:08:17.7]} 16... Nb5 {[%clk 0:08:47.3]} 17.
f6 {[%clk 0:07:55.2]} 17... Bxf6 {[%clk 0:08:39.1]} 18. Bh6 {[%clk 0:05:49.5]}
18... Re8 {[%clk 0:08:32.3]} 19. Rxf6 {[%clk 0:05:38.2]} 19... Qxf6 {[%clk
0:08:29.2]} 20. Rf1 {[%clk 0:05:38.3]} 20... Qh8 {[%clk 0:08:17.8]} 21. Bg5
{[%clk 0:05:32.5]} 21... Nd7 {[%clk 0:08:08.8]} 22. Ne3 {[%clk 0:05:23.7]} 22...
h6 {[%clk 0:06:34.4]} 23. Qf2 {[%clk 0:04:12.3]} 23... Qh7 {[%clk 0:05:12.6]}
24. Bxh6 {[%clk 0:03:57.8]} 24... Ne5 {[%clk 0:05:08.9]} 25. Bg5 {[%clk
0:03:30.2]} 25... Ba6 {[%clk 0:04:49]} 26. c4 {[%clk 0:03:04.3]} 26... Nd4
{[%clk 0:04:45.1]} 27. Qd2 {[%clk 0:02:10.8]} 27... Qh5 {[%clk 0:04:13.9]} 28.
Bf4 {[%clk 0:02:04.3]} 28... Qe2 {[%clk 0:03:54.8]} 29. Qa5 {[%clk 0:01:53.5]}
29... Nxd3 {[%clk 0:03:49.8]} 30. Bg5 {[%clk 0:01:06.7]} 30... Qh5 {[%clk
0:02:42.1]} 31. Bf6 {[%clk 0:00:52]} 31... Rb6 {[%clk 0:02:11.6]} 32. g4 {[%clk
0:00:46.1]} 32... Qh7 {[%clk 0:02:11.4]} 33. Nf3 {[%clk 0:00:42]} 33... Nxf3+
{[%clk 0:02:06.7]} 34. Rxf3 {[%clk 0:00:43.9]} 34... Rb1+ {[%clk 0:01:18.3]} 35.
Nf1 {[%clk 0:00:44]} 35... Bxc4 {[%clk 0:00:34.5]} 36. Qc3 {[%clk 0:00:21.6]}
36... Ne5 {[%clk 0:00:23.2]} 37. Rh3 {[%clk 0:00:15.3]} 37... Bxf1 {[%clk
0:00:18.3]} 38. Bxf1 {[%clk 0:00:15.4]} 38... Nxg4 {[%clk 0:00:19.2]} 39. Rxh7
{[%clk 0:00:15.1]} 39... Kxh7 {[%clk 0:00:19.9]} 40. Qh3+ {[%clk 0:00:14.8]}
40... Nh6 {[%clk 0:00:16.3]} 41. Bg5 {[%clk 0:00:15.8]} 41... Rh8 {[%clk
0:00:16.3]} 42. Bxh6 {[%clk 0:00:13]} 42... Kg8 {[%clk 0:00:15.6]} 43. Qe3
{[%clk 0:00:13.8]} 43... Rb6 {[%clk 0:00:15.1]} 44. Qg5 {[%clk 0:00:14.2]} 44...
Kh7 {[%clk 0:00:12.9]} 45. Qf4 {[%clk 0:00:14.2]} 45... Kg8 {[%clk 0:00:13.4]}
46. Bg5 {[%clk 0:00:15.1]} 46... Rh5 {[%clk 0:00:10.5]} 47. Qf6 {[%clk 0:00:15]}
47... d5 {[%clk 0:00:08.8]} 48. e5 {[%clk 0:00:14.2]} 48... Rb8 {[%clk
0:00:08.1]} 49. h4 {[%clk 0:00:14.8]} 49... c4 {[%clk 0:00:08.6]} 50. Bh3 {[%clk
0:00:15]} 50... Re8 {[%clk 0:00:07.8]} 51. Qf3 {[%clk 0:00:12.5]} 51... Rc8
{[%clk 0:00:06.1]} 52. Qc3 {[%clk 0:00:11.7]} 52... Rh8 {[%clk 0:00:05.3]} 53.
Bf6 {[%clk 0:00:11.8]} 53... Rh5 {[%clk 0:00:04.7]} 54. Bg4 {[%clk 0:00:12.4]}
54... Rh7 {[%clk 0:00:05.6]} 55. Kf2 {[%clk 0:00:13.4]} 55... Rh6 {[%clk
0:00:05.3]} 56. Ke3 {[%clk 0:00:14.4]} 56... Rh7 {[%clk 0:00:05.3]} 57. Kd4
{[%clk 0:00:15.4]} 57... g5 {[%clk 0:00:05.2]} 58. Bxg5 {[%clk 0:00:15]} 58...
Kg7 {[%clk 0:00:05.9]} 59. Qf3 {[%clk 0:00:15.5]} 59... c3 {[%clk 0:00:06.2]}
60. Qf6+ {[%clk 0:00:14.8]} 60... Kg8 {[%clk 0:00:07.2]} 61. Bxe6 {[%clk
0:00:13.3]} 61... Rf8 {[%clk 0:00:07.4]} 62. Bf5 {[%clk 0:00:13.6]} 62... c2
{[%clk 0:00:08.5]} 63. Bxc2 {[%clk 0:00:13.8]} 63... Rg7 {[%clk 0:00:08.7]} 64.
Bf5 {[%clk 0:00:13.4]} 64... Rb8 {[%clk 0:00:08.4]} 65. e6 {[%clk 0:00:12.2]}
65... fxe6 {[%clk 0:00:07.7]} 66. Bxe6+ {[%clk 0:00:12.5]} 66... Kh7 {[%clk
0:00:09]} 67. Qf5+ {[%clk 0:00:12.4]} 67... Kh8 {[%clk 0:00:09]} 68. Bf6 {[%clk
0:00:13.4]} 1-0

[Event "GrandPrix_30.05"]
[Site "Chess.com"]
[Date "2020.05.30"]
[Round "6"]
[White "Kopytkin"]
[Black "IriBu"]
[Result "0-1"]
[WhiteElo "2062"]
[BlackElo "2207"]
[TimeControl "600+2"]
[EndTime "10:59:21 PDT"]
[Termination "IriBu won on time"]

1. d4 {[%clk 0:10:01.9]} 1... Nf6 {[%clk 0:09:59.9]} 2. Bf4 {[%clk 0:10:01.1]}
2... e6 {[%clk 0:10:00.2]} 3. e3 {[%clk 0:09:57.7]} 3... b6 {[%clk 0:10:01.3]}
4. Nd2 {[%clk 0:09:57.8]} 4... Bb7 {[%clk 0:10:02]} 5. Ngf3 {[%clk 0:09:58.8]}
5... d6 {[%clk 0:10:01.2]} 6. Bd3 {[%clk 0:09:58.6]} 6... g6 {[%clk 0:10:02]} 7.
Qe2 {[%clk 0:09:58.4]} 7... Bg7 {[%clk 0:10:00.8]} 8. e4 {[%clk 0:09:59.1]} 8...
h6 {[%clk 0:09:45.4]} 9. h3 {[%clk 0:09:48.9]} 9... Nbd7 {[%clk 0:09:43.4]} 10.
O-O-O {[%clk 0:09:42.9]} 10... a6 {[%clk 0:09:27.7]} 11. g4 {[%clk 0:09:23.4]}
11... Qe7 {[%clk 0:09:16.9]} 12. c3 {[%clk 0:08:44.3]} 12... e5 {[%clk
0:09:13.6]} 13. Be3 {[%clk 0:08:28]} 13... O-O {[%clk 0:09:01.6]} 14. d5 {[%clk
0:08:07.9]} 14... Nc5 {[%clk 0:08:50.4]} 15. Bc2 {[%clk 0:08:01.1]} 15... a5
{[%clk 0:08:44]} 16. Rhg1 {[%clk 0:07:22.4]} 16... Ba6 {[%clk 0:08:41.2]} 17. c4
{[%clk 0:07:22.4]} 17... Nfd7 {[%clk 0:08:31.8]} 18. h4 {[%clk 0:07:16.8]} 18...
Rfb8 {[%clk 0:08:25.5]} 19. a4 {[%clk 0:07:05.2]} 19... Bb7 {[%clk 0:08:13.6]}
20. b3 {[%clk 0:07:04.4]} 20... Na6 {[%clk 0:08:04.3]} 21. Nb1 {[%clk
0:06:59.2]} 21... Ndc5 {[%clk 0:07:55]} 22. Nc3 {[%clk 0:06:58.6]} 22... Nb4
{[%clk 0:07:52.5]} 23. Qd2 {[%clk 0:06:15.1]} 23... Qf8 {[%clk 0:07:34.8]} 24.
Rg3 {[%clk 0:06:02.4]} 24... Rd8 {[%clk 0:07:20.6]} 25. Rdg1 {[%clk 0:05:56]}
25... c6 {[%clk 0:06:32.3]} 26. Rd1 {[%clk 0:04:26]} 26... cxd5 {[%clk 0:06:24]}
27. exd5 {[%clk 0:03:49.2]} 27... e4 {[%clk 0:06:12.9]} 28. Nd4 {[%clk
0:03:41.4]} 28... Nbd3+ {[%clk 0:06:03]} 29. Kb1 {[%clk 0:03:37.4]} 29... Rac8
{[%clk 0:05:33.3]} 30. f3 {[%clk 0:03:26.4]} 30... Re8 {[%clk 0:05:21.4]} 31.
fxe4 {[%clk 0:03:18.8]} 31... Nb4 {[%clk 0:05:15.4]} 32. Rf3 {[%clk 0:03:01.2]}
32... Nxc2 {[%clk 0:04:56.9]} 33. Qxc2 {[%clk 0:02:57]} 33... Qe7 {[%clk
0:04:56.6]} 34. Ndb5 {[%clk 0:01:59.3]} 34... Rcd8 {[%clk 0:04:39.6]} 35. Rdf1
{[%clk 0:01:49.7]} 35... Rf8 {[%clk 0:04:35.8]} 36. h5 {[%clk 0:01:36.5]} 36...
Bc8 {[%clk 0:04:11.9]} 37. Rg3 {[%clk 0:01:18.8]} 37... g5 {[%clk 0:03:44.2]}
38. Nd4 {[%clk 0:01:05.9]} 38... Qe5 {[%clk 0:03:29.1]} 39. Rgg1 {[%clk
0:01:05]} 39... Rde8 {[%clk 0:03:25.6]} 40. Ndb5 {[%clk 0:00:36.2]} 40... Nxe4
{[%clk 0:02:31.8]} 41. Qxe4 {[%clk 0:00:36]} 41... Qxe4+ {[%clk 0:02:32.1]} 42.
Nxe4 {[%clk 0:00:37.2]} 42... Rxe4 {[%clk 0:02:33.4]} 43. Bxb6 {[%clk
0:00:36.2]} 43... Rxg4 {[%clk 0:01:43.6]} 44. Nxd6 {[%clk 0:00:32.2]} 44... Rxg1
{[%clk 0:01:26.3]} 45. Bxg1 {[%clk 0:00:32.4]} 45... Bh3 {[%clk 0:01:25.6]} 46.
Rd1 {[%clk 0:00:17.6]} 46... Bg4 {[%clk 0:01:18.6]} 47. Re1 {[%clk 0:00:15.4]}
47... Bxh5 {[%clk 0:01:15]} 48. c5 {[%clk 0:00:12.9]} 48... Bg6+ {[%clk
0:01:01.1]} 49. Ka2 {[%clk 0:00:13.1]} 49... Bc3 {[%clk 0:00:57.7]} 50. Rc1
{[%clk 0:00:11.8]} 50... Bb4 {[%clk 0:00:57.3]} 51. Nb5 {[%clk 0:00:10.7]} 51...
f5 {[%clk 0:00:46.9]} 52. c6 {[%clk 0:00:11.9]} 52... f4 {[%clk 0:00:47]} 53. c7
{[%clk 0:00:12.8]} 53... Bf5 {[%clk 0:00:47.6]} 54. Nd4 {[%clk 0:00:12.6]} 54...
Bc8 {[%clk 0:00:43.4]} 55. Nc6 {[%clk 0:00:13.7]} 55... f3 {[%clk 0:00:36.3]}
56. Bc5 {[%clk 0:00:14.6]} 56... Bxc5 {[%clk 0:00:31.2]} 57. Rxc5 {[%clk
0:00:15.6]} 57... f2 {[%clk 0:00:32.6]} 58. Rc1 {[%clk 0:00:16.8]} 58... Bd7
{[%clk 0:00:05.9]} 59. Ne7+ {[%clk 0:00:15]} 59... Kg7 {[%clk 0:00:07.2]} 60. d6
{[%clk 0:00:05.4]} 60... g4 {[%clk 0:00:08.2]} 61. c8=Q {[%clk 0:00:04.5]} 61...
Bxc8 {[%clk 0:00:08.7]} 62. Nxc8 {[%clk 0:00:05.6]} 62... f1=Q {[%clk
0:00:08.3]} 63. Rxf1 {[%clk 0:00:04.9]} 63... Rxf1 {[%clk 0:00:10.2]} 64. b4
{[%clk 0:00:03]} 64... g3 {[%clk 0:00:09.8]} 65. Ne7 {[%clk 0:00:03.4]} 65... g2
{[%clk 0:00:10.1]} 66. d7 {[%clk 0:00:04.9]} 66... Rd1 {[%clk 0:00:11.1]} 67.
Nf5+ {[%clk 0:00:04]} 67... Kf6 {[%clk 0:00:11.6]} 68. Ne3 {[%clk 0:00:03.2]}
68... Rd2+ {[%clk 0:00:12.5]} 0-1